[Event "Late-Titled-Tuesday-Blitz-February-27-2024"]
[Site "Chess.com"]
[Date "2024.02.27"]
[Round "4"]
[White "giovannibrandao7"]
[Black "db-banana"]
[Result "0-1"]
[WhiteElo "2227"]
[BlackElo "2487"]
[TimeControl "180+1"]
[EndTime "14:40:56 PST"]
[Termination "db-banana won on time"]

1. e4 {[%clk 0:03:00.9]} 1... Nf6 {[%clk 0:02:59.4]} 2. e5 {[%clk 0:03:00.7]}
2... Nd5 {[%clk 0:02:59.8]} 3. d4 {[%clk 0:03:01.3]} 3... d6 {[%clk 0:03:00.3]}
4. Nf3 {[%clk 0:03:01.8]} 4... dxe5 {[%clk 0:02:57.9]} 5. dxe5 {[%clk
0:03:02.7]} 5... e6 {[%clk 0:02:41]} 6. c4 {[%clk 0:03:00]} 6... Bb4+ {[%clk
0:02:31.3]} 7. Bd2 {[%clk 0:02:42]} 7... Bxd2+ {[%clk 0:02:31.2]} 8. Qxd2 {[%clk
0:02:40.7]} 8... Nb6 {[%clk 0:02:16.6]} 9. Qxd8+ {[%clk 0:02:37.8]} 9... Kxd8
{[%clk 0:02:17.5]} 10. Nc3 {[%clk 0:02:36]} 10... c6 {[%clk 0:02:06.3]} 11.
O-O-O+ {[%clk 0:02:24.7]} 11... Ke7 {[%clk 0:02:05.8]} 12. Ne4 {[%clk
0:02:21.4]} 12... f6 {[%clk 0:01:23.6]} 13. Nd6 {[%clk 0:02:10]} 13... Rd8
{[%clk 0:01:22.5]} 14. Be2 {[%clk 0:01:59.3]} 14... fxe5 {[%clk 0:01:16.5]} 15.
Nxc8+ {[%clk 0:01:58.2]} 15... Rxc8 {[%clk 0:01:16.9]} 16. Nxe5 {[%clk 0:01:57]}
16... N8d7 {[%clk 0:01:15.5]} 17. Nxd7 {[%clk 0:01:39.2]} 17... Nxd7 {[%clk
0:01:16.4]} 18. Rhe1 {[%clk 0:01:39.3]} 18... Nf6 {[%clk 0:01:12.5]} 19. Rd3
{[%clk 0:01:29.2]} 19... Kf7 {[%clk 0:01:03.7]} 20. Re3 {[%clk 0:01:21.6]} 20...
Re8 {[%clk 0:00:38.2]} 21. Kc2 {[%clk 0:01:17.8]} 21... Rad8 {[%clk 0:00:38.4]}
22. Bf3 {[%clk 0:01:17.7]} 22... Rd6 {[%clk 0:00:30.5]} 23. g4 {[%clk
0:01:11.7]} 23... h6 {[%clk 0:00:29.9]} 24. h4 {[%clk 0:01:10.6]} 24... g5
{[%clk 0:00:30.3]} 25. hxg5 {[%clk 0:01:10.8]} 25... hxg5 {[%clk 0:00:31.2]} 26.
Re5 {[%clk 0:01:07.5]} 26... Rd4 {[%clk 0:00:28.7]} 27. Rxg5 {[%clk 0:00:30.6]}
27... Rxc4+ {[%clk 0:00:27.2]} 28. Kb3 {[%clk 0:00:31]} 28... Rf4 {[%clk
0:00:26.2]} 29. Re3 {[%clk 0:00:31.4]} 29... Rh8 {[%clk 0:00:18.7]} 30. Rge5
{[%clk 0:00:24.4]} 30... Rh3 {[%clk 0:00:18]} 31. Be2 {[%clk 0:00:12.8]} 31...
Rxe3+ {[%clk 0:00:18.2]} 32. fxe3 {[%clk 0:00:10.9]} 32... Rf2 {[%clk
0:00:17.7]} 33. Bc4 {[%clk 0:00:06.9]} 33... Nd5 {[%clk 0:00:17.5]} 34. Bxd5
{[%clk 0:00:06.8]} 34... cxd5 {[%clk 0:00:12.8]} 35. Rh5 {[%clk 0:00:05.6]}
35... Kg6 {[%clk 0:00:09.5]} 36. Re5 {[%clk 0:00:05.4]} 36... Kf6 {[%clk
0:00:09.2]} 37. Rh5 {[%clk 0:00:05.3]} 37... Rf3 {[%clk 0:00:09.8]} 38. Rh7
{[%clk 0:00:04.1]} 38... Rxe3+ {[%clk 0:00:10]} 39. Kc2 {[%clk 0:00:04.1]} 39...
Re2+ {[%clk 0:00:09.9]} 40. Kc1 {[%clk 0:00:04.6]} 40... Re1+ {[%clk 0:00:09]}
41. Kc2 {[%clk 0:00:04.4]} 41... Ra1 {[%clk 0:00:09.6]} 42. a3 {[%clk 0:00:03]}
42... Rg1 {[%clk 0:00:09.7]} 43. Rxb7 {[%clk 0:00:03.3]} 43... a5 {[%clk
0:00:05.4]} 44. Rb5 {[%clk 0:00:03]} 44... Rxg4 {[%clk 0:00:05.9]} 45. Rxa5
{[%clk 0:00:03]} 45... Rg2+ {[%clk 0:00:06.5]} 46. Kc1 {[%clk 0:00:02.4]} 46...
Ke5 {[%clk 0:00:07.1]} 47. Ra8 {[%clk 0:00:02.8]} 47... Kd4 {[%clk 0:00:07.5]}
48. Re8 {[%clk 0:00:03]} 48... e5 {[%clk 0:00:08.1]} 49. a4 {[%clk 0:00:01.7]}
49... e4 {[%clk 0:00:08.8]} 50. a5 {[%clk 0:00:02.3]} 50... Rg6 {[%clk 0:00:09]}
51. Ra8 {[%clk 0:00:01.6]} 51... e3 {[%clk 0:00:08.8]} 52. a6 {[%clk 0:00:02]}
52... Rg1+ {[%clk 0:00:07.8]} 53. Kc2 {[%clk 0:00:02.1]} 53... Ra1 {[%clk
0:00:06.8]} 0-1

[Event "Late-Titled-Tuesday-Blitz-February-27-2024"]
[Site "Chess.com"]
[Date "2024.02.27"]
[Round "4"]
[White "HansOnTwitch"]
[Black "Fandorine"]
[Result "0-1"]
[WhiteElo "3077"]
[BlackElo "2899"]
[TimeControl "180+1"]
[EndTime "14:40:57 PST"]
[Termination "Fandorine won by checkmate"]

1. c4 {[%clk 0:03:00.9]} 1... g6 {[%clk 0:02:57.9]} 2. Nc3 {[%clk 0:02:59.6]}
2... Bg7 {[%clk 0:02:57.5]} 3. d4 {[%clk 0:02:59.1]} 3... Nf6 {[%clk 0:02:57.7]}
4. e4 {[%clk 0:02:59.8]} 4... d6 {[%clk 0:02:58.2]} 5. h3 {[%clk 0:02:58.4]}
5... O-O {[%clk 0:02:54.1]} 6. Be3 {[%clk 0:02:58.2]} 6... Na6 {[%clk
0:02:42.4]} 7. Be2 {[%clk 0:02:55.7]} 7... c6 {[%clk 0:02:37.1]} 8. Nf3 {[%clk
0:02:38.6]} 8... e5 {[%clk 0:02:37.5]} 9. d5 {[%clk 0:02:37.3]} 9... Nh5 {[%clk
0:02:37.6]} 10. O-O {[%clk 0:02:01.4]} 10... Nf4 {[%clk 0:02:37.1]} 11. Re1
{[%clk 0:02:00.8]} 11... Nxe2+ {[%clk 0:02:32.1]} 12. Qxe2 {[%clk 0:02:01.7]}
12... c5 {[%clk 0:02:32.3]} 13. Kh2 {[%clk 0:01:54.1]} 13... f5 {[%clk
0:01:57.8]} 14. exf5 {[%clk 0:01:48]} 14... gxf5 {[%clk 0:01:58.7]} 15. Rg1
{[%clk 0:01:43.3]} 15... Kh8 {[%clk 0:01:52]} 16. Bg5 {[%clk 0:01:38.7]} 16...
Qe8 {[%clk 0:01:43.4]} 17. Nb5 {[%clk 0:01:34.7]} 17... Qd7 {[%clk 0:01:42.7]}
18. Nh4 {[%clk 0:01:33.4]} 18... Nc7 {[%clk 0:01:39]} 19. Nxc7 {[%clk
0:01:32.7]} 19... Qxc7 {[%clk 0:01:39.2]} 20. f4 {[%clk 0:01:12.2]} 20... Rb8
{[%clk 0:01:20.2]} 21. Rae1 {[%clk 0:00:57.6]} 21... a6 {[%clk 0:01:01.8]} 22.
Kh1 {[%clk 0:00:45.7]} 22... b5 {[%clk 0:00:59.8]} 23. fxe5 {[%clk 0:00:45.6]}
23... dxe5 {[%clk 0:00:58.8]} 24. b3 {[%clk 0:00:37.8]} 24... Rb6 {[%clk
0:00:48.1]} 25. Rgf1 {[%clk 0:00:36.1]} 25... f4 {[%clk 0:00:46.2]} 26. Nf3
{[%clk 0:00:34.5]} 26... Rg6 {[%clk 0:00:36.6]} 27. Bh4 {[%clk 0:00:34.6]} 27...
Rh6 {[%clk 0:00:35.4]} 28. Bf2 {[%clk 0:00:29.8]} 28... Rf5 {[%clk 0:00:17.9]}
29. cxb5 {[%clk 0:00:23.2]} 29... Rfh5 {[%clk 0:00:15.7]} 30. Bg1 {[%clk
0:00:23.5]} 30... axb5 {[%clk 0:00:15.1]} 31. Qxb5 {[%clk 0:00:23.2]} 31... Qd8
{[%clk 0:00:12.9]} 32. d6 {[%clk 0:00:20.5]} 32... Rxd6 {[%clk 0:00:09.5]} 33.
Qxc5 {[%clk 0:00:19.3]} 33... Rd5 {[%clk 0:00:08.9]} 34. Qc4 {[%clk 0:00:17.2]}
34... Bb7 {[%clk 0:00:09.3]} 35. Rc1 {[%clk 0:00:14.9]} 35... Qa8 {[%clk
0:00:07.9]} 36. Qc7 {[%clk 0:00:14.5]} 36... Rd8 {[%clk 0:00:06.2]} 37. Qf7
{[%clk 0:00:13.6]} 37... Rxh3+ {[%clk 0:00:05.2]} 38. gxh3 {[%clk 0:00:05.2]}
38... Bxf3+ {[%clk 0:00:05.7]} 39. Kh2 {[%clk 0:00:05.7]} 39... Bd5 {[%clk
0:00:06.1]} 40. Qf5 {[%clk 0:00:04]} 40... Qxa2+ {[%clk 0:00:05.6]} 41. Rf2
{[%clk 0:00:03.8]} 41... Qa8 {[%clk 0:00:05.6]} 42. Rd2 {[%clk 0:00:03.3]} 42...
Rg8 {[%clk 0:00:05.9]} 43. Rcd1 {[%clk 0:00:01.9]} 43... Be4 {[%clk 0:00:06.5]}
44. Qh5 {[%clk 0:00:01.8]} 44... Bf3 {[%clk 0:00:06.7]} 45. Qh4 {[%clk
0:00:01.9]} 45... Bxd1 {[%clk 0:00:07.3]} 46. Rxd1 {[%clk 0:00:02.8]} 46... Qa2+
{[%clk 0:00:07.2]} 47. Qf2 {[%clk 0:00:03]} 47... Qxb3 {[%clk 0:00:07.9]} 48.
Qd2 {[%clk 0:00:03]} 48... Qf3 {[%clk 0:00:07.9]} 49. Re1 {[%clk 0:00:02.2]}
49... Bf6 {[%clk 0:00:07.4]} 50. Qf2 {[%clk 0:00:02.1]} 50... Qd5 {[%clk
0:00:06.5]} 51. Qf1 {[%clk 0:00:02]} 51... e4 {[%clk 0:00:05.9]} 52. Kh1 {[%clk
0:00:01.4]} 52... e3+ {[%clk 0:00:06.1]} 53. Kh2 {[%clk 0:00:02]} 53... Be5
{[%clk 0:00:06.4]} 54. Qd3 {[%clk 0:00:01.1]} 54... Qg2# {[%clk 0:00:06.1]} 0-1

[Event "Late-Titled-Tuesday-Blitz-February-27-2024"]
[Site "Chess.com"]
[Date "2024.02.27"]
[Round "4"]
[White "vugarrasulov"]
[Black "Arystanner"]
[Result "1/2-1/2"]
[WhiteElo "2989"]
[BlackElo "2789"]
[TimeControl "180+1"]
[EndTime "14:40:58 PST"]
[Termination "Game drawn by repetition"]

1. d4 {[%clk 0:03:00.9]} 1... d5 {[%clk 0:02:58.1]} 2. c4 {[%clk 0:03:01.1]}
2... e6 {[%clk 0:02:58.8]} 3. Nc3 {[%clk 0:03:01.2]} 3... c5 {[%clk 0:02:59.6]}
4. e3 {[%clk 0:02:58]} 4... Nc6 {[%clk 0:02:58.6]} 5. cxd5 {[%clk 0:02:56.9]}
5... exd5 {[%clk 0:02:59.2]} 6. Nf3 {[%clk 0:02:55.4]} 6... Nf6 {[%clk
0:02:58.6]} 7. Bb5 {[%clk 0:02:54.8]} 7... cxd4 {[%clk 0:02:59.2]} 8. Nxd4
{[%clk 0:02:53.5]} 8... Bd7 {[%clk 0:02:59.6]} 9. O-O {[%clk 0:02:52.4]} 9...
Bd6 {[%clk 0:02:59.2]} 10. Nf3 {[%clk 0:02:50.7]} 10... Be6 {[%clk 0:02:59.3]}
11. b3 {[%clk 0:02:43.9]} 11... O-O {[%clk 0:02:58.2]} 12. Bb2 {[%clk
0:02:44.5]} 12... Rc8 {[%clk 0:02:54.1]} 13. Rc1 {[%clk 0:02:44]} 13... h6
{[%clk 0:02:50.1]} 14. h3 {[%clk 0:02:41.9]} 14... Bb8 {[%clk 0:02:43.1]} 15.
Ne2 {[%clk 0:02:38.7]} 15... Ne4 {[%clk 0:02:33.3]} 16. Nf4 {[%clk 0:02:34.8]}
16... Qb6 {[%clk 0:01:50.4]} 17. Bxc6 {[%clk 0:02:24.8]} 17... Rxc6 {[%clk
0:01:50.3]} 18. Rxc6 {[%clk 0:02:23.3]} 18... Qxc6 {[%clk 0:01:39.8]} 19. Qd4
{[%clk 0:02:20.9]} 19... f6 {[%clk 0:01:39.8]} 20. Rc1 {[%clk 0:02:17.5]} 20...
Qd7 {[%clk 0:01:33.8]} 21. Rd1 {[%clk 0:02:06.5]} 21... Bxf4 {[%clk 0:01:21.3]}
22. exf4 {[%clk 0:02:07.3]} 22... b6 {[%clk 0:01:21.2]} 23. Qe3 {[%clk
0:01:53.4]} 23... Re8 {[%clk 0:01:09.5]} 24. Nd4 {[%clk 0:01:53.2]} 24... Bf7
{[%clk 0:01:09.3]} 25. Qf3 {[%clk 0:01:48]} 25... Nd6 {[%clk 0:00:55.7]} 26. g4
{[%clk 0:01:40.6]} 26... Re4 {[%clk 0:00:55.5]} 27. Nf5 {[%clk 0:01:33.4]} 27...
Re8 {[%clk 0:00:30.9]} 28. Ne3 {[%clk 0:01:33.5]} 28... Ne4 {[%clk 0:00:24.9]}
29. Bd4 {[%clk 0:01:28.9]} 29... Qb5 {[%clk 0:00:24.2]} 30. h4 {[%clk
0:01:11.8]} 30... Nd6 {[%clk 0:00:24.3]} 31. g5 {[%clk 0:01:09.4]} 31... hxg5
{[%clk 0:00:20.8]} 32. hxg5 {[%clk 0:01:09.4]} 32... fxg5 {[%clk 0:00:21.3]} 33.
fxg5 {[%clk 0:01:09.2]} 33... Qd7 {[%clk 0:00:21.4]} 34. Ng4 {[%clk 0:00:52.8]}
34... Re4 {[%clk 0:00:20.3]} 35. Ne5 {[%clk 0:00:48.4]} 35... Qe6 {[%clk
0:00:19.6]} 36. Nxf7 {[%clk 0:00:37]} 36... Nxf7 {[%clk 0:00:20]} 37. Be3 {[%clk
0:00:26.7]} 37... Nxg5 {[%clk 0:00:18.5]} 38. Bxg5 {[%clk 0:00:20.5]} 38... Rg4+
{[%clk 0:00:15.8]} 39. Kf1 {[%clk 0:00:20.9]} 39... Rxg5 {[%clk 0:00:16.3]} 40.
Rc1 {[%clk 0:00:10.6]} 40... Rg6 {[%clk 0:00:06]} 41. Qd3 {[%clk 0:00:03.3]}
41... Rf6 {[%clk 0:00:04.6]} 42. Qg3 {[%clk 0:00:03.9]} 42... Rf8 {[%clk
0:00:03.6]} 43. Rc7 {[%clk 0:00:03.7]} 43... Qf6 {[%clk 0:00:04]} 44. Kg2 {[%clk
0:00:03.3]} 44... d4 {[%clk 0:00:04.1]} 45. Rxa7 {[%clk 0:00:03.6]} 45... Qc6+
{[%clk 0:00:03.9]} 46. Kg1 {[%clk 0:00:03.1]} 46... Qh6 {[%clk 0:00:02.9]} 47.
Rd7 {[%clk 0:00:02.4]} 47... Qc1+ {[%clk 0:00:03.1]} 48. Kh2 {[%clk 0:00:03.1]}
48... Qh6+ {[%clk 0:00:03.4]} 49. Kg1 {[%clk 0:00:03.5]} 49... Qc1+ {[%clk
0:00:04]} 50. Kh2 {[%clk 0:00:03.3]} 50... Qh6+ {[%clk 0:00:04.3]} 51. Kg1
{[%clk 0:00:02.5]} 1/2-1/2

[Event "Late-Titled-Tuesday-Blitz-February-27-2024"]
[Site "Chess.com"]
[Date "2024.02.27"]
[Round "4"]
[White "GilbertoHernandezAmura"]
[Black "Rashad_Zeynalli"]
[Result "1/2-1/2"]
[WhiteElo "2416"]
[BlackElo "2633"]
[TimeControl "180+1"]
[EndTime "14:40:58 PST"]
[Termination "Game drawn by repetition"]

1. d4 {[%clk 0:03:00.9]} 1... d5 {[%clk 0:02:58.8]} 2. Nc3 {[%clk 0:02:59]} 2...
Nf6 {[%clk 0:02:58.3]} 3. Bf4 {[%clk 0:02:56.9]} 3... c6 {[%clk 0:02:57.9]} 4.
e3 {[%clk 0:02:52.7]} 4... Qb6 {[%clk 0:02:58.4]} 5. a3 {[%clk 0:02:47.3]} 5...
Bf5 {[%clk 0:02:56.7]} 6. Na4 {[%clk 0:02:35.9]} 6... Qa5+ {[%clk 0:02:55]} 7.
c3 {[%clk 0:02:32.8]} 7... Nbd7 {[%clk 0:02:54.6]} 8. b4 {[%clk 0:02:31.7]} 8...
Qd8 {[%clk 0:02:55.2]} 9. Nf3 {[%clk 0:02:31]} 9... Nh5 {[%clk 0:02:47.4]} 10.
Bg5 {[%clk 0:02:26.6]} 10... h6 {[%clk 0:02:47.2]} 11. Bh4 {[%clk 0:02:26.7]}
11... g5 {[%clk 0:02:46.6]} 12. Bg3 {[%clk 0:02:26.9]} 12... Nxg3 {[%clk
0:02:42.3]} 13. hxg3 {[%clk 0:02:27.8]} 13... Bg7 {[%clk 0:02:41.1]} 14. Bd3
{[%clk 0:02:27.1]} 14... Bxd3 {[%clk 0:02:40]} 15. Qxd3 {[%clk 0:02:28]} 15...
b5 {[%clk 0:02:36.6]} 16. Nc5 {[%clk 0:02:22.7]} 16... Nxc5 {[%clk 0:02:36.2]}
17. bxc5 {[%clk 0:02:23.1]} 17... Qc7 {[%clk 0:02:18.8]} 18. a4 {[%clk
0:02:06.6]} 18... bxa4 {[%clk 0:02:14.1]} 19. Rxa4 {[%clk 0:02:05.1]} 19... a5
{[%clk 0:02:14.4]} 20. O-O {[%clk 0:01:59.8]} 20... O-O {[%clk 0:02:14.7]} 21.
e4 {[%clk 0:01:58.7]} 21... dxe4 {[%clk 0:02:09.4]} 22. Qxe4 {[%clk 0:01:59.6]}
22... e6 {[%clk 0:02:07.4]} 23. Rb1 {[%clk 0:01:56.3]} 23... Rfb8 {[%clk
0:02:06.2]} 24. Nd2 {[%clk 0:01:51]} 24... Rxb1+ {[%clk 0:01:58.9]} 25. Qxb1
{[%clk 0:01:50.7]} 25... e5 {[%clk 0:01:57.1]} 26. Nc4 {[%clk 0:01:39]} 26...
exd4 {[%clk 0:01:55.4]} 27. cxd4 {[%clk 0:01:39.9]} 27... Bxd4 {[%clk
0:01:53.5]} 28. Qf5 {[%clk 0:01:28.3]} 28... Qxg3 {[%clk 0:01:42.1]} 29. Nd6
{[%clk 0:01:11.8]} 29... Qf4 {[%clk 0:01:25.7]} 30. Qxf4 {[%clk 0:01:10.7]}
30... gxf4 {[%clk 0:01:26.6]} 31. Rxd4 {[%clk 0:01:11.2]} 31... a4 {[%clk
0:01:25.4]} 32. Rd2 {[%clk 0:01:11.6]} 32... Ra5 {[%clk 0:01:24]} 33. Ra2 {[%clk
0:01:05.3]} 33... Kg7 {[%clk 0:01:14.5]} 34. Nc4 {[%clk 0:01:01.7]} 34... Rxc5
{[%clk 0:01:14]} 35. Rxa4 {[%clk 0:01:01.7]} 35... Kg6 {[%clk 0:01:12.7]} 36.
Kf1 {[%clk 0:00:59.7]} 36... Kg5 {[%clk 0:01:08.2]} 37. Ke2 {[%clk 0:00:59.5]}
37... Rb5 {[%clk 0:01:06.3]} 38. Nd2 {[%clk 0:00:52.7]} 38... Rb2 {[%clk
0:01:01.7]} 39. Rc4 {[%clk 0:00:52]} 39... f3+ {[%clk 0:00:56.6]} 40. gxf3
{[%clk 0:00:50.6]} 40... h5 {[%clk 0:00:55.1]} 41. Rxc6 {[%clk 0:00:49.4]} 41...
h4 {[%clk 0:00:55.5]} 42. Rc5+ {[%clk 0:00:50]} 42... Kg6 {[%clk 0:00:55.8]} 43.
Ke3 {[%clk 0:00:45.9]} 43... h3 {[%clk 0:00:52.1]} 44. Rc1 {[%clk 0:00:45.5]}
44... Rb8 {[%clk 0:00:49]} 45. Rh1 {[%clk 0:00:44.8]} 45... Rh8 {[%clk
0:00:49.6]} 46. Kf4 {[%clk 0:00:44.8]} 46... h2 {[%clk 0:00:44.3]} 47. Kg3
{[%clk 0:00:44]} 47... Kf5 {[%clk 0:00:44.1]} 48. Rxh2 {[%clk 0:00:43.8]} 48...
Rg8+ {[%clk 0:00:44.7]} 49. Kh3 {[%clk 0:00:43.9]} 49... Kf4 {[%clk 0:00:44.8]}
50. Rh1 {[%clk 0:00:31.8]} 50... Rd8 {[%clk 0:00:37.6]} 51. Rd1 {[%clk
0:00:30.7]} 51... f5 {[%clk 0:00:37.7]} 52. Kg2 {[%clk 0:00:30.9]} 52... Rg8+
{[%clk 0:00:36.9]} 53. Kf1 {[%clk 0:00:31]} 53... Rd8 {[%clk 0:00:37.8]} 54. Ke2
{[%clk 0:00:28.8]} 54... Re8+ {[%clk 0:00:38.1]} 55. Kd3 {[%clk 0:00:29.2]}
55... Rd8+ {[%clk 0:00:39]} 56. Kc3 {[%clk 0:00:28.1]} 56... Rc8+ {[%clk
0:00:39.5]} 57. Kd4 {[%clk 0:00:22.6]} 57... Rd8+ {[%clk 0:00:39.1]} 58. Kc5
{[%clk 0:00:22.8]} 58... Rd7 {[%clk 0:00:39.3]} 59. Kc6 {[%clk 0:00:22.9]} 59...
Rd3 {[%clk 0:00:39]} 60. Kc5 {[%clk 0:00:23.4]} 60... Rd8 {[%clk 0:00:38.6]} 61.
Kb4 {[%clk 0:00:23.1]} 61... Rb8+ {[%clk 0:00:37.8]} 62. Kc3 {[%clk 0:00:21.3]}
62... Rc8+ {[%clk 0:00:38]} 63. Kd3 {[%clk 0:00:17.5]} 63... Rd8+ {[%clk
0:00:37.8]} 64. Ke2 {[%clk 0:00:17.1]} 64... Re8+ {[%clk 0:00:37.8]} 65. Kf1
{[%clk 0:00:17.8]} 65... Rd8 {[%clk 0:00:38]} 66. Ke1 {[%clk 0:00:13]} 66...
Re8+ {[%clk 0:00:36]} 67. Kf1 {[%clk 0:00:13.2]} 67... Rd8 {[%clk 0:00:36]}
1/2-1/2

[Event "Late-Titled-Tuesday-Blitz-February-27-2024"]
[Site "Chess.com"]
[Date "2024.02.27"]
[Round "4"]
[White "Bigfish1995"]
[Black "hansen"]
[Result "1-0"]
[WhiteElo "3169"]
[BlackElo "2912"]
[TimeControl "180+1"]
[EndTime "14:40:59 PST"]
[Termination "Bigfish1995 won on time"]

1. e4 {[%clk 0:03:00.9]} 1... e5 {[%clk 0:02:59.4]} 2. Nf3 {[%clk 0:03:01]} 2...
Nc6 {[%clk 0:02:59.7]} 3. Bb5 {[%clk 0:03:01.5]} 3... a6 {[%clk 0:02:59.2]} 4.
Ba4 {[%clk 0:03:01.4]} 4... Nf6 {[%clk 0:02:59.2]} 5. O-O {[%clk 0:03:00.8]}
5... Be7 {[%clk 0:02:59.4]} 6. Bxc6 {[%clk 0:02:55.4]} 6... dxc6 {[%clk
0:02:57.6]} 7. d3 {[%clk 0:02:55.9]} 7... Nd7 {[%clk 0:02:56.7]} 8. b3 {[%clk
0:02:51.9]} 8... O-O {[%clk 0:02:55.3]} 9. Bb2 {[%clk 0:02:52.1]} 9... Bd6
{[%clk 0:02:53.1]} 10. Nbd2 {[%clk 0:02:49.7]} 10... Re8 {[%clk 0:02:51.2]} 11.
Nc4 {[%clk 0:02:48.3]} 11... c5 {[%clk 0:02:48.8]} 12. a4 {[%clk 0:02:45.7]}
12... f6 {[%clk 0:02:42.8]} 13. Nxd6 {[%clk 0:02:38.4]} 13... cxd6 {[%clk
0:02:42.8]} 14. a5 {[%clk 0:02:36.2]} 14... Nb8 {[%clk 0:02:43]} 15. Nd2 {[%clk
0:02:35.9]} 15... Be6 {[%clk 0:02:42.1]} 16. f4 {[%clk 0:02:35]} 16... Nc6
{[%clk 0:02:38]} 17. Bc3 {[%clk 0:02:32.1]} 17... Nd4 {[%clk 0:02:18.5]} 18. Nc4
{[%clk 0:02:26.6]} 18... Qe7 {[%clk 0:01:59.1]} 19. Nb6 {[%clk 0:02:24.1]} 19...
Rad8 {[%clk 0:01:59.1]} 20. b4 {[%clk 0:02:12.2]} 20... Qc7 {[%clk 0:01:51.9]}
21. bxc5 {[%clk 0:01:50.4]} 21... Qxc5 {[%clk 0:01:11.7]} 22. Bxd4 {[%clk
0:01:35.4]} 22... Qxd4+ {[%clk 0:01:11.2]} 23. Kh1 {[%clk 0:01:36]} 23... d5
{[%clk 0:01:00.5]} 24. Ra4 {[%clk 0:01:34.1]} 24... Qc3 {[%clk 0:00:56.5]} 25.
f5 {[%clk 0:01:20.8]} 25... Bf7 {[%clk 0:00:52.7]} 26. exd5 {[%clk 0:01:21.1]}
26... Bxd5 {[%clk 0:00:48.5]} 27. Nxd5 {[%clk 0:01:20.1]} 27... Rxd5 {[%clk
0:00:48.5]} 28. Qh5 {[%clk 0:01:21]} 28... Red8 {[%clk 0:00:36.6]} 29. Rh4
{[%clk 0:01:20.3]} 29... h6 {[%clk 0:00:32.1]} 30. Rg4 {[%clk 0:01:19.7]} 30...
Kf8 {[%clk 0:00:26.4]} 31. Rxg7 {[%clk 0:01:16.6]} 31... Kxg7 {[%clk 0:00:26.5]}
32. Qg6+ {[%clk 0:01:17.1]} 32... Kf8 {[%clk 0:00:27.2]} 33. Qxf6+ {[%clk
0:01:17.2]} 33... Ke8 {[%clk 0:00:27.9]} 34. Qe6+ {[%clk 0:01:16.8]} 34... Kf8
{[%clk 0:00:27]} 35. Qxh6+ {[%clk 0:01:17.4]} 35... Ke7 {[%clk 0:00:18.3]} 36.
f6+ {[%clk 0:01:14.7]} 36... Kd7 {[%clk 0:00:15.1]} 37. f7 {[%clk 0:01:15]}
37... Rxa5 {[%clk 0:00:12.4]} 38. f8=Q {[%clk 0:01:04]} 38... Rxf8 {[%clk
0:00:12.6]} 39. Qg7+ {[%clk 0:01:00.9]} 39... Kc6 {[%clk 0:00:08.1]} 40. Qxf8
{[%clk 0:01:00.5]} 40... Ra1 {[%clk 0:00:07.4]} 41. h4 {[%clk 0:01:00.6]} 41...
Rxf1+ {[%clk 0:00:06.6]} 42. Qxf1 {[%clk 0:01:01.5]} 42... a5 {[%clk 0:00:05.6]}
43. h5 {[%clk 0:01:01.9]} 43... a4 {[%clk 0:00:06]} 44. h6 {[%clk 0:01:01.3]}
44... a3 {[%clk 0:00:04.4]} 45. Qf6+ {[%clk 0:00:49.6]} 45... Kb5 {[%clk
0:00:03.7]} 46. h7 {[%clk 0:00:48.3]} 46... a2 {[%clk 0:00:04.1]} 47. h8=Q
{[%clk 0:00:48.6]} 47... a1=Q+ {[%clk 0:00:04.5]} 48. Kh2 {[%clk 0:00:49.2]}
48... Qc5 {[%clk 0:00:03.3]} 49. Qe8+ {[%clk 0:00:35.3]} 49... Kb4 {[%clk
0:00:02.8]} 50. Qee7 {[%clk 0:00:14.7]} 50... Qg1+ {[%clk 0:00:02.6]} 51. Kg3
{[%clk 0:00:15.1]} 51... Qe1+ {[%clk 0:00:02.4]} 52. Kg4 {[%clk 0:00:15.5]}
52... Qe2+ {[%clk 0:00:02.7]} 53. Kh3 {[%clk 0:00:16]} 53... Qe3+ {[%clk
0:00:02.4]} 54. g3 {[%clk 0:00:15.6]} 54... Qxe7 {[%clk 0:00:02]} 55. Qxe7+
{[%clk 0:00:15.9]} 55... Kc3 {[%clk 0:00:02.3]} 56. Qxb7 {[%clk 0:00:15.9]}
56... Kxc2 {[%clk 0:00:02.3]} 57. Qd5 {[%clk 0:00:15.7]} 57... Kc3 {[%clk
0:00:01.3]} 58. Kg4 {[%clk 0:00:14.1]} 58... Qd4+ {[%clk 0:00:01.7]} 59. Qe4
{[%clk 0:00:14.6]} 59... Qxd3 {[%clk 0:00:01.6]} 60. Qxe5+ {[%clk 0:00:14.8]}
1-0